[Event "GER-chT States Women 2022"]
[Site "Braunfels"]
[Date "2022.06.17"]
[Round "3.21"]
[White "Frank, Michelle Viviane"]
[Black "Mundt, Alexandra"]
[Result "0-1"]
[ECO "E77"]
[WhiteElo "1882"]
[BlackElo "1782"]
[Annotator "NA RC"]
[PlyCount "38"]
[EventDate "2022.06.15"]
[EventType "swiss"]
[EventCountry "GER"]
[SourceTitle "playchess.com"]
[Source "ChessBase"]
[SourceQuality "1"]
[TimeControl "40/5400+30:1800+30"]

1. d4 {[%emt 0:00:12]} g6 {[%emt 0:00:06]} 2. e4 {[%emt 0:00:04]} Bg7 {[%emt 0:00:06]} 3. c4 {[%emt 0:00:09]} c5 {[%emt 0:00:07]} 4. d5 {[%emt 0:00:05]} d6 {[%emt 0:00:07]} 5. Nc3 {[%emt 0:00:08]} Nf6 {[%emt 0:01:13]} 6. Be2 {[%emt 0:00:17]} O-O {[%emt 0:01:32]} 7. f4 {[%emt 0:00:12]} e6 {[%emt 0:02:16]} 8. Nf3 {[%emt 0:04:21]} Re8 {[%emt 0:03:42]} 9. O-O {[%emt 0:02:07]} exd5 {[%emt 0:04:50]} 10. exd5 {[%emt 0:00:12]} Bg4 {[%emt 0:06:13]} 11. Bd3 {[%emt 0:00:22]} Nh5 {[%emt 0:02:40]} 12. Qc2 {[%emt 0:03:26]} Bxf3 {[%emt 0:11:00]} 13. gxf3 {[%emt 0:10:23]} Qh4 {[%emt 0:03:24]} 14. Ne2 {[%emt 0:01:27]} Nd7 {[%emt 0:11:49]} 15. Bd2 {[%emt 0:01:31]} Qh3 {[%emt 0:08:39]} 16. Rf2 {[%emt 0:03:24]} Rxe2 {[%emt 0:02:02]} 17. Rxe2 {[%emt 0:00:19]} Bd4+ {[%emt 0:00:05]} 18. Be3 {[%emt 0:00:49]} Nxf4 {[%emt 0:01:39]} 19. Ree1 {[%emt 0:00:25]} Qxf3 0-1

[Event "GER-chT States Women 2022"]
[Site "Braunfels"]
[Date "2022.06.17"]
[Round "3.22"]
[White "Braeutigam, Katerina"]
[Black "Ries, Jutta"]
[Result "0-1"]
[ECO "B03"]
[WhiteElo "1860"]
[BlackElo "2015"]
[Annotator "NA RC"]
[PlyCount "58"]
[EventDate "2022.06.15"]
[EventType "swiss"]
[EventCountry "GER"]
[SourceTitle "playchess.com"]
[Source "ChessBase"]
[SourceQuality "1"]
[TimeControl "40/5400+30:1800+30"]

1. e4 {[%emt 0:00:01]} Nf6 {[%emt 0:00:09]} 2. e5 {[%emt 0:00:08]} Nd5 {[%emt 0:00:09]} 3. d4 {[%emt 0:00:08]} d6 {[%emt 0:00:04]} 4. c4 {[%emt 0:00:11]} Nb6 {[%emt 0:00:02]} 5. exd6 {[%emt 0:00:14]} cxd6 {[%emt 0:00:31]} 6. Be2 {[%emt 0:01:25]} g6 {[%emt 0:00:22]} 7. Nf3 {[%emt 0:00:56]} Bg7 {[%emt 0:00:08]} 8. O-O {[%emt 0:00:33]} O-O {[%emt 0:00:35]} 9. b3 {[%emt 0:06:14]} Nc6 {[%emt 0:05:50]} 10. Bb2 {[%emt 0:00:45]} d5 {[%emt 0:03:17]} 11. c5 {[%emt 0:02:14]} Nd7 {[%emt 0:00:14]} 12. Nc3 {[%emt 0:02:54]} Nf6 {[%emt 0:01:10]} 13. a3 {[%emt 0:02:35]} Bg4 {[%emt 0:05:50]} 14. h3 {[%emt 0:04:10]} Bxf3 {[%emt 0:00:26]} 15. Bxf3 {[%emt 0:00:11]} e6 {[%emt 0:02:43]} 16. b4 {[%emt 0:03:37]} a6 {[%emt 0:01:58]} 17. Na4 {[%emt 0:10:44]} Nd7 {[%emt 0:00:16]} 18. Bc3 {[%emt 0:02:33]} Qh4 {[%emt 0:01:38]} 19. g3 {[%emt 0:26:21]} Qxh3 {[%emt 0:08:58]} 20. Bg4 {[%emt 0:07:40]} Qh6 {[%emt 0:00:05]} 21. Kg2 {[%emt 0:05:39]} Qg5 {[%emt 0:01:44]} 22. Rh1 {[%emt 0:08:06]} f5 {[%emt 0:09:48]} 23. Be2 {[%emt 0:05:33]} Qe7 {[%emt 0:04:50]} 24. f4 {[%emt 0:08:03]} Bf6 {[%emt 0:02:45]} 25. b5 {[%emt 0:00:53]} axb5 {[%emt 0:01:33]} 26. Bxb5 {[%emt 0:00:01]} Ra7 {[%emt 0:08:52]} 27. Nb6 {[%emt 0:00:45]} Nxb6 {[%emt 0:12:51]} 28. Bxc6 {[%emt 0:00:18]} Nc4 {[%emt 0:00:25]} 29. Bb5 {[%emt 0:01:25]} Ne3+ {[%emt 0:00:12]} 0-1

[Event "GER-chT States Women 2022"]
[Site "Braunfels"]
[Date "2022.06.17"]
[Round "3.23"]
[White "Werner, Rosalie"]
[Black "Leib, Britta"]
[Result "0-1"]
[ECO "B01"]
[WhiteElo "1712"]
[BlackElo "1906"]
[Annotator "TA"]
[PlyCount "142"]
[EventDate "2022.06.15"]
[EventType "swiss"]
[EventCountry "GER"]
[SourceTitle "playchess.com"]
[Source "ChessBase"]
[SourceQuality "1"]
[TimeControl "40/5400+30:1800+30"]

{[%evp 11,142,42,48,50,52,48,58,43,57,30,31,39,39,33,34,31,68,45,47,42,129,121,156,151,128,135,141,137,131,129,125,126,150,153,143,140,149,141,167,164,410,265,372,374,560,581,585,572,582,573,570,560,1121,878,1211,374,1391,627,760,364,366,370,385,385,356,352,410,329,302,255,252,249,225,162,248,250,241,255,259,23,33,29,95,86,111,110,126,-161,-162,-195,-195,-183,-157,-203,-204,-200,-204,-204,-196,-309,-306,-337,-322,-491,-482,-477,-477,-419,-404,-687,-652,-497,-311,-296,-271,-692,-676,-1086,-1270,-1533,-569,-619,-545,-29972,-29974,-29984,-29985,-29985,-29986,-29987,-29988,-29988,-29989]} 1. e4 {[%emt 0:00:03]} d5 {[%emt 0:00:33]} 2. exd5 {[%emt 0:00:07]} Qxd5 {[%emt 0:00:09]} 3. Nc3 {[%emt 0:00:07]} Qa5 {[%emt 0:01:35]} 4. d4 {[%emt 0:00:08]} c6 {[%emt 0:00:54]} 5. Nf3 {[%emt 0:00:57]} Nf6 {[%emt 0:02:51]} 6. Bd2 {[%emt 0:01:56]} Qc7 {[%emt 0:12:11]} 7. Bc4 {[%emt 0:07:49] 7.Bc4 is better than 7.Bd3. B01: Scandinavian Defence.} e6 {[%emt 0:08:44]} 8. O-O {[%emt 0:00:31]} Be7 {[%emt 0:00:44]} 9. Re1 {[%emt 0:02:09] White is slightly better.} O-O {[%emt 0:01:23] [#]} 10. Ne2 $146 {[%emt 0:06:17]} ({Predecessor:} 10. Ne5 Nbd7 11. Bf4 Nxe5 12. dxe5 Rd8 13. Qf3 Nd7 14. Qg4 Kh8 15. Ne4 Nb6 16. Bd3 {½-½ (24) Abascal Vicente,I (1644)-Climent Vidal,P (1485) Barcelona 2020}) 10... Bd6 {[%emt 0:08:57]} 11. Ng3 {[%emt 0:05:01]} Nbd7 {[%emt 0:06:04]} 12. Qe2 {[%emt 0:01:55]} Re8 {[%emt 0:08:30]} 13. Ne5 {[%emt 0:03:56]} Nf8 {[%emt 0:07:31]} 14. Nh5 {[%emt 0:17:27]} Nxh5 {[%emt 0:12:17]} 15. Qxh5 {[%emt 0:00:20]} Ng6 {[%emt 0:00:17]} ({Black should play} 15... Rd8 $14) 16. Re3 $16 {[%emt 0:13:18]} c5 {[%emt 0:07:20]} 17. Rh3 {[%emt 0:04:24]} Nf8 {[%emt 0:00:14]} 18. Bb5 {[%emt 0:15:49]} Re7 {[%emt 0:02:39]} 19. Bd3 {[%emt 0:01:48][%cal Rd3h7]} g6 {[%emt 0:00:48]} 20. Qh4 $40 {[%emt 0:05:07][%mdl 128] White has strong attack.} cxd4 {[%emt 0:08:31]} 21. Bg5 {[%emt 0:03:11]} f5 {[%emt 0:00:44] Prevents Ng4.} 22. Bxe7 {[%emt 0:04:13]} Bxe7 {[%emt 0:00:02]} 23. Qxd4 {[%emt 0:00:28]} Bf6 {[%emt 0:00:02]} 24. f4 {[%emt 0:01:05]} Nd7 {[%emt 0:00:58][%cal Rd7e5]} 25. Re1 {[%emt 0:01:14][%cal Od3f5]} a6 $2 {[%emt 0:00:59]} (25... Nxe5 26. fxe5 Be7) 26. Bc4 {[%emt 0:01:33]} Nb6 {[%emt 0:00:11]} (26... Nxe5 $142 27. fxe5 Be7) 27. Bb3 $18 {[%emt 0:00:21]} Kg7 {[%emt 0:00:53]} (27... Nd5 {is a better defense.} 28. Bxd5 Qa5) 28. Rc3 {[%emt 0:00:42]} Qd8 {[%emt 0:01:20]} 29. Qxd8 {[%emt 0:01:23]} Bxd8 {[%emt 0:00:01]} 30. Rd1 {[%emt 0:00:07] Inhibits Nd5.} Be7 {[%emt 0:03:27]} 31. Rc7 {[%emt 0:00:53]} Kf6 {[%emt 0:00:03]} 32. c4 {[%emt 0:00:42]} Rb8 {[%emt 0:00:52] [#]} 33. Kf1 $2 {[%emt 0:00:59]} (33. Rd8 $3 {[%cal Od8f8][%mdl 512] Threatening mate with Rf8+!} Bc5+ (33... Nd7 34. Rdxd7) 34. Kf1) 33... h6 $2 {[%emt 0:01:38] [#]} (33... Na8) 34. c5 {[%emt 0:00:25]} (34. Rd8 $142 $3 {[%mdl 512]} Bd7 (34... Nd7 35. Rdxd7) 35. Rxb8) 34... Na8 {[%emt 0:00:01] [#]} 35. Nd7+ {[%emt 0:00:06]} (35. Rcd7 $142 $1 {[%mdl 512]}) 35... Bxd7 {[%emt 0:01:31]} 36. Rcxd7 {[%emt 0:00:04]} Bxc5 {[%emt 0:00:04]} 37. Re1 {[%emt 0:00:11][%csl Gb3][%cal Re1e6]} Re8 {[%emt 0:01:03]} 38. Rxb7 {[%emt 0:00:28]} g5 {[%emt 0:01:42]} 39. g3 {[%emt 0:01:04]} gxf4 {[%emt 0:00:24]} 40. gxf4 {[%emt 0:00:07]} Bd6 {[%emt 0:00:09]} 41. Kg2 {[%emt 0:17:18]} Bxf4 {[%emt 0:00:33]} 42. h4 {[%emt 0:01:02]} Rg8+ {[%emt 0:14:17]} (42... Nc7 {was worth a try.} 43. Kf3 Bd6) 43. Kf3 {[%emt 0:00:21][%csl Gb3][%cal Re1e6]} Be5 {[%emt 0:00:02]} 44. Ra7 {[%emt 0:06:57]} Rg3+ {[%emt 0:08:26]} 45. Ke2 $2 {[%emt 0:00:14]} (45. Kf2 $18 {aiming for Rxe5.} Rg8 46. Kf1 (46. Rxa6 Nc7 $11) (46. Bxe6 Re8 $16)) 45... Nc7 $11 {[%emt 0:00:17]} 46. Kd1 {[%emt 0:00:50][%cal Oa7c7] Hoping for Rxc7!} Rd3+ {[%emt 0:02:08]} (46... Rg7 $11) 47. Kc2 $16 {[%emt 0:01:28]} Rd7 {[%emt 0:00:20]} 48. Bc4 {[%emt 0:01:52]} Re7 {[%emt 0:00:02]} 49. Bxa6 $2 {[%emt 0:01:57][%mdl 8192]} (49. b4 $16 {stays on course.}) 49... Bd4 $19 {[%emt 0:00:01]} 50. Rxc7 {[%emt 0:02:30]} Rxc7+ {[%emt 0:00:02][%mdl 4096] Endgame KRB-KRB} 51. Kb1 {[%emt 0:00:08]} f4 {[%emt 0:03:07]} 52. Rf1 {[%emt 0:00:52]} (52. Rc1 $17 {was called for.} Rg7 53. Rc6) 52... e5 {[%emt 0:00:18]} 53. Bd3 {[%emt 0:01:01] [#]} Rg7 $1 {[%emt 0:00:02]} 54. Be4 {[%emt 0:01:22]} Rg3 {[%emt 0:00:35]} 55. h5 {[%emt 0:00:56]} (55. Kc1 $142) 55... Re3 {[%emt 0:01:31]} 56. Bd5 {[%emt 0:00:35]} Re2 {[%emt 0:02:08]} 57. b4 {[%emt 0:00:22]} (57. Rd1 $142) 57... Rb2+ {[%emt 0:00:28]} 58. Kc1 {[%emt 0:00:15]} Rxb4 {[%emt 0:00:24]} 59. Kc2 {[%emt 0:00:43]} Kf5 {[%emt 0:01:54]} 60. a3 {[%emt 0:00:42]} (60. Re1 $142) 60... Rb5 {[%emt 0:02:28]} 61. Bc4 {[%emt 0:00:26]} Rb2+ {[%emt 0:00:48]} 62. Kd3 {[%emt 0:00:35]} Rh2 {[%emt 0:00:05] Threatens to win with ...Rh3+.} 63. Bf7 $2 {[%emt 0:00:31]} (63. Bd5) 63... Rh3+ {[%emt 0:00:21]} 64. Ke2 {[%emt 0:00:15]} Rxa3 {[%emt 0:00:33] Strongly threatening ...e4.} 65. Bg6+ {[%emt 0:00:18]} Kf6 {[%emt 0:00:54]} (65... Kg4 $142 {[%cal Oe5e4] ( -> ...e4!)} 66. Kd2 f3) 66. Bd3 {[%emt 0:00:49]} Kg5 {[%emt 0:01:31] ...e4 is the strong threat.} 67. Bg6 {[%emt 0:00:41]} e4 {[%emt 0:00:58] Black mates.} 68. Kd2 {[%emt 0:00:30]} Ra2+ {[%emt 0:00:44]} 69. Kd1 {[%emt 0:00:23]} Ra1+ {[%emt 0:00:19]} 70. Ke2 {[%emt 0:00:10]} f3+ {[%emt 0:00:02]} 71. Rxf3 {[%emt 0:00:28]} Ra2+ {[%emt 0:00:37] What a bad dream for White.  Weighted Error Value: White=0.68/Black=0.24 (precise)} 0-1

[Event "GER-chT States Women 2022"]
[Site "Braunfels"]
[Date "2022.06.17"]
[Round "3.24"]
[White "Freter, Anke"]
[Black "Krausse, Vanessa"]
[Result "1-0"]
[ECO "B24"]
[WhiteElo "1856"]
[BlackElo "1632"]
[Annotator "NA RC"]
[PlyCount "85"]
[EventDate "2022.06.15"]
[EventType "swiss"]
[EventCountry "GER"]
[SourceTitle "playchess.com"]
[Source "ChessBase"]
[SourceQuality "1"]
[TimeControl "40/5400+30:1800+30"]

1. e4 {[%emt 0:00:02]} c5 {[%emt 0:00:05]} 2. Nc3 {[%emt 0:00:09]} Nc6 {[%emt 0:00:43]} 3. g3 {[%emt 0:00:15]} Nf6 {[%emt 0:00:32]} 4. Bg2 {[%emt 0:00:36]} g6 {[%emt 0:00:40]} 5. f4 {[%emt 0:01:53]} d6 {[%emt 0:01:26]} 6. d3 {[%emt 0:00:30]} Bg7 {[%emt 0:00:32]} 7. Nf3 {[%emt 0:00:30]} O-O {[%emt 0:00:22]} 8. O-O {[%emt 0:00:33]} Bd7 {[%emt 0:09:15]} 9. h3 {[%emt 0:04:01]} Qb6 {[%emt 0:11:00]} 10. Kh2 {[%emt 0:03:53]} e6 {[%emt 0:13:44]} 11. g4 {[%emt 0:09:33]} a6 {[%emt 0:03:03]} 12. Ne2 {[%emt 0:15:22]} d5 {[%emt 0:08:13]} 13. e5 {[%emt 0:05:44]} Ne8 {[%emt 0:00:36]} 14. c3 {[%emt 0:03:24]} f6 {[%emt 0:06:29]} 15. d4 {[%emt 0:02:29]} cxd4 {[%emt 0:01:32]} 16. cxd4 {[%emt 0:00:02]} fxe5 {[%emt 0:01:09]} 17. fxe5 {[%emt 0:02:12]} Rc8 {[%emt 0:02:36]} 18. b3 {[%emt 0:12:14]} Nb4 {[%emt 0:10:45]} 19. a3 {[%emt 0:07:02]} Nc6 {[%emt 0:08:50]} 20. Bg5 {[%emt 0:09:06]} Nc7 {[%emt 0:01:33]} 21. Qd2 {[%emt 0:02:15]} Na5 {[%emt 0:04:12]} 22. Rab1 {[%emt 0:02:46]} Bb5 {[%emt 0:02:40]} 23. Be7 {[%emt 0:01:25]} Rf7 {[%emt 0:01:06]} 24. Bc5 {[%emt 0:00:13]} Qc6 {[%emt 0:00:13]} 25. Rfc1 {[%emt 0:01:09]} Bxe2 {[%emt 0:00:48]} 26. Qxe2 {[%emt 0:00:06]} Qd7 {[%emt 0:01:47]} 27. Ng5 {[%emt 0:02:08]} Bh6 {[%emt 0:01:53]} 28. Nxf7 $18 {[%emt 0:01:22]} Bxc1 {[%emt 0:00:12]} 29. Rxc1 {[%emt 0:01:41]} Qxf7 {[%emt 0:00:09]} 30. Rf1 {[%emt 0:00:25]} Qg7 {[%emt 0:00:55]} 31. Qf3 {[%emt 0:00:55]} Nc6 {[%emt 0:01:31]} 32. g5 {[%emt 0:01:53]} Nb5 {[%emt 0:01:20]} 33. Qg4 {[%emt 0:02:05]} Re8 {[%emt 0:01:40]} 34. Rf6 {[%emt 0:00:50]} Qd7 {[%emt 0:02:02]} 35. h4 {[%emt 0:00:45]} Kg7 {[%emt 0:01:29]} 36. Bh3 {[%emt 0:02:30]} Nc7 {[%emt 0:01:52]} 37. h5 {[%emt 0:00:25]} Ne7 {[%emt 0:00:56]} 38. hxg6 {[%emt 0:01:43]} hxg6 {[%emt 0:00:05]} 39. Qf3 {[%emt 0:01:47]} Nf5 {[%emt 0:00:40]} 40. Qd3 {[%emt 0:01:10]} Nb5 {[%emt 0:01:03]} 41. Kg1 {[%emt 0:32:10]} Qc6 {[%emt 0:03:32]} 42. Bxf5 {[%emt 0:00:00]} gxf5 {[%emt 0:00:16]} 43. Qh3 {[%emt 0:00:00]} 1-0

[Event "GER-chT States Women 2022"]
[Site "Braunfels"]
[Date "2022.06.17"]
[Round "3.25"]
[White "Wagner, Margarethe"]
[Black "Steinbacher, Claudia"]
[Result "0-1"]
[ECO "B28"]
[WhiteElo "1902"]
[BlackElo "2020"]
[Annotator "NA RC"]
[PlyCount "76"]
[EventDate "2022.06.15"]
[EventType "swiss"]
[EventCountry "GER"]
[SourceTitle "playchess.com"]
[Source "ChessBase"]
[SourceQuality "1"]
[TimeControl "40/5400+30:1800+30"]

1. e4 {[%emt 0:00:02]} c5 {[%emt 0:00:03]} 2. Nf3 {[%emt 0:00:13]} a6 {[%emt 0:00:01]} 3. c3 {[%emt 0:00:14]} d6 {[%emt 0:06:42]} 4. d4 {[%emt 0:02:27]} cxd4 {[%emt 0:05:33]} 5. cxd4 {[%emt 0:00:12]} g6 {[%emt 0:00:33]} 6. Nc3 {[%emt 0:04:32]} Bg7 {[%emt 0:00:14]} 7. Be3 {[%emt 0:03:33]} Nc6 {[%emt 0:05:24]} 8. h3 {[%emt 0:07:46]} Nf6 {[%emt 0:01:52]} 9. Be2 {[%emt 0:09:21]} O-O {[%emt 0:01:28]} 10. a4 {[%emt 0:03:47]} e5 {[%emt 0:06:32]} 11. d5 {[%emt 0:05:57]} Ne7 {[%emt 0:00:05]} 12. g4 {[%emt 0:08:52]} Nd7 {[%emt 0:02:19]} 13. g5 {[%emt 0:05:07]} f5 {[%emt 0:01:23]} 14. gxf6 {[%emt 0:00:50]} Nxf6 {[%emt 0:00:03]} 15. Ng5 {[%emt 0:09:48]} Kh8 {[%emt 0:08:18]} 16. a5 {[%emt 0:03:04]} h6 {[%emt 0:00:38]} 17. Nf3 {[%emt 0:08:18]} Nh5 {[%emt 0:01:03]} 18. Nh4 {[%emt 0:02:40]} Nf4 {[%emt 0:01:29]} 19. Bg4 {[%emt 0:00:54]} g5 {[%emt 0:04:20]} 20. Bb6 {[%emt 0:05:53]} Qe8 {[%emt 0:01:01]} 21. Nf3 {[%emt 0:02:02]} Neg6 {[%emt 0:03:15]} 22. Kd2 {[%emt 0:03:51]} Bxg4 {[%emt 0:03:02]} 23. hxg4 {[%emt 0:00:11]} Kg8 {[%emt 0:00:02]} 24. Kc2 {[%emt 0:02:44]} Rc8 {[%emt 0:02:45]} 25. Nd2 {[%emt 0:00:17]} Qb5 {[%emt 0:04:55]} 26. Nf1 {[%emt 0:02:04]} Ne2 {[%emt 0:04:26]} 27. Ra3 {[%emt 0:04:38]} Nxc3 {[%emt 0:03:46]} 28. bxc3 {[%emt 0:00:38]} Qb4 {[%emt 0:07:54]} 29. Rb3 {[%emt 0:00:58]} Qxe4+ {[%emt 0:00:13]} 30. Qd3 {[%emt 0:00:08]} Qxh1 {[%emt 0:00:34]} 31. Ng3 {[%emt 0:01:59]} e4 {[%emt 0:00:26]} 32. Nxe4 {[%emt 0:01:47]} Ne5 {[%emt 0:00:14]} 33. Qe2 {[%emt 0:01:22]} Nc4 {[%emt 0:03:51]} 34. Ng3 {[%emt 0:00:46]} Qxd5 {[%emt 0:00:37]} 35. Nf5 {[%emt 0:00:12]} Rxf5 {[%emt 0:00:32]} 36. gxf5 {[%emt 0:00:32]} Qxf5+ {[%emt 0:00:04]} 37. Kc1 {[%emt 0:00:30]} Nxb6 {[%emt 0:00:50]} 38. axb6 {[%emt 0:00:14]} Bxc3 {[%emt 0:01:27]} 0-1

[Event "GER-chT States Women 2022"]
[Site "Braunfels"]
[Date "2022.06.17"]
[Round "3.26"]
[White "Peglau, Dora"]
[Black "Wagner, Victoria"]
[Result "0-1"]
[ECO "D37"]
[WhiteElo "2008"]
[BlackElo "1806"]
[Annotator "TA"]
[PlyCount "110"]
[EventDate "2022.06.15"]
[EventType "swiss"]
[EventCountry "GER"]
[SourceTitle "playchess.com"]
[Source "ChessBase"]
[SourceQuality "1"]
[TimeControl "40/5400+30:1800+30"]

{[%evp 9,110,26,26,22,35,34,30,5,17,5,4,-8,-3,-52,-54,-58,-58,-45,-36,-35,-36,-40,-35,-53,-49,-53,-48,-56,-52,-70,68,60,65,54,58,41,81,86,80,80,85,75,79,22,31,24,27,-8,-8,-8,-8,-10,-29,-26,0,-2363,-2110,-2440,-1730,-5150,-5085,-2560,-1747,-29957,-29952,-29956,-29958,-29961,-29962,-29967,-29961,-29968,-29969,-29967,-29970,-29970,-29968,-29971,-29973,-29974,-29975,-29976,-29977,-29977,-29978,-29978,-29979,-29979,-29980,-29980,-29981,-29981,-29982,-29982,-29983,-29983,-29984,-29984,-29985,-29985,-29986,-29986,-29987]} 1. d4 {[%emt 0:00:03]} d5 {[%emt 0:00:09]} 2. c4 {[%emt 0:00:10]} e6 {[%emt 0:00:06]} 3. Nc3 {[%emt 0:00:10]} Nf6 {[%emt 0:00:07]} 4. Nf3 {[%emt 0:00:16]} a6 {[%emt 0:00:09]} 5. cxd5 {[%emt 0:02:15]} exd5 {[%emt 0:00:46]} 6. Bg5 {[%emt 0:01:38] D37: Queen's Gambit Declined: 5 Bf4.} Be6 {[%emt 0:00:36]} 7. e3 {[%emt 0:02:05]} Nbd7 {[%emt 0:01:06]} 8. Be2 {[%emt 0:02:15] White has an edge.} Bd6 {[%emt 0:01:30]} 9. O-O {[%emt 0:02:08]} c6 {[%emt 0:01:11]} 10. Qc2 {[%emt 0:03:00]} Qc7 {[%emt 0:03:24] [#]} 11. e4 $146 {[%emt 0:03:36]} (11. Bh4 $11) ({Predecessor:} 11. Bh4 h6 12. Rac1 O-O 13. Rfe1 Rfe8 14. a3 Bg4 15. Bg3 Bxg3 16. hxg3 Qd6 17. Nd2 {1-0 (97) Budrewicz,K (2183)-Tristan,L (2561) Chess.com INT 2022}) 11... dxe4 {[%emt 0:01:14]} 12. Nxe4 {[%emt 0:00:46]} Nxe4 {[%emt 0:19:29]} 13. Qxe4 {[%emt 0:00:26]} h6 {[%emt 0:00:14]} 14. Bh4 {[%emt 0:00:39]} O-O {[%emt 0:06:44]} 15. Bd3 {[%emt 0:04:52][%csl Gd3][%cal Re4h7]} g6 {[%emt 0:01:35]} 16. Qe3 {[%emt 0:04:36]} Bf4 {[%emt 0:05:16]} 17. Bg3 {[%emt 0:01:18]} Bxg3 {[%emt 0:04:31]} 18. hxg3 {[%emt 0:00:51]} Kg7 {[%emt 0:01:17]} 19. Ne5 {[%emt 0:03:17][%cal Oe5g6]} Nf6 {[%emt 0:17:50] [#]} (19... Rfe8 $15) 20. Nxg6 $1 $14 {[%emt 0:02:34]} fxg6 {[%emt 0:05:21]} 21. Qxe6 {[%emt 0:00:10]} Qf7 {[%emt 0:05:38]} 22. Rfe1 {[%emt 0:03:20]} Qxe6 {[%emt 0:05:09]} 23. Rxe6 {[%emt 0:00:12]} Rad8 {[%emt 0:00:23]} 24. Re7+ {[%emt 0:00:16]} Rf7 {[%emt 0:00:33]} 25. Rxf7+ {[%emt 0:00:13]} Kxf7 $16 {[%emt 0:00:08][%mdl 4096] Endgame KRB-KRN} 26. Bc4+ {[%emt 0:00:05]} ({White should play} 26. Rd1 $16) 26... Kg7 $11 {[%emt 0:06:42]} 27. Rd1 {[%emt 0:01:59]} c5 $1 {[%emt 0:01:05]} 28. d5 {[%emt 0:01:04]} b5 {[%emt 0:00:06]} 29. Be2 {[%emt 0:07:42]} Rxd5 {[%emt 0:00:15]} 30. f4 {[%emt 0:07:12]} Rxd1+ {[%emt 0:03:46]} 31. Bxd1 {[%emt 0:00:01] KB-KN} Nd5 {[%emt 0:04:12]} 32. Kf1 $2 {[%emt 0:10:43][%mdl 8192] Black converts the advantage convincingly.} (32. Bf3 $11 Nb4 33. Bb7) 32... Ne3+ $19 {[%emt 0:04:49]} 33. Ke2 {[%emt 0:00:10]} Nxd1 {[%emt 0:00:14]} 34. Kxd1 {[%emt 0:00:01] KP-KP} h5 {[%emt 0:00:12][%cal Bh6h5,Bh5g4][%mdl 32]} 35. Kd2 {[%emt 0:07:30]} Kf6 {[%emt 0:00:28] aiming for ...Kf5.} 36. g4 {[%emt 0:01:49]} hxg4 {[%emt 0:00:34] Black mates.} 37. g3 {[%emt 0:00:02]} Kf5 {[%emt 0:00:25]} 38. Kd3 {[%emt 0:00:49]} g5 {[%emt 0:01:00]} 39. fxg5 {[%emt 0:00:51]} Kxg5 {[%emt 0:00:05]} 40. Ke4 {[%emt 0:00:14]} c4 {[%emt 0:00:50]} 41. a3 {[%emt 0:31:02]} Kf6 {[%emt 0:14:59]} 42. Kd5 {[%emt 0:00:00]} Kf5 {[%emt 0:00:36]} 43. Kd4 {[%emt 0:00:00]} Ke6 {[%emt 0:13:21]} 44. Kc5 {[%emt 0:00:00]} Ke5 {[%emt 0:00:10]} 45. Kb6 {[%emt 0:00:00]} Kd6 {[%emt 0:02:11]} 46. Kxa6 {[%emt 0:00:01] [#] K3P-K3P} Kc6 $1 {[%emt 0:00:06]} 47. Ka5 {[%emt 0:02:43]} Kc5 {[%emt 0:00:15]} 48. Ka6 {[%emt 0:00:13] [#]} b4 $1 {[%emt 0:02:18]} 49. axb4+ {[%emt 0:01:22]} Kxb4 {[%emt 0:00:04] KPP-KPP} 50. Kb6 {[%emt 0:00:06]} c3 {[%emt 0:00:06]} 51. bxc3+ {[%emt 0:00:04]} Kxc3 {[%emt 0:00:03]} 52. Kc5 {[%emt 0:00:05]} Kd3 {[%emt 0:00:05]} 53. Kd5 {[%emt 0:00:05]} Ke3 {[%emt 0:00:20]} 54. Ke5 {[%emt 0:00:15]} Kf3 {[%emt 0:00:05]} 55. Kd4 {[%emt 0:00:13]} Kxg3 {[%emt 0:00:14] Weighted Error Value: White=0.43/Black=0.08 (flawless)} 0-1

[Event "GER-chT States Women 2022"]
[Site "Braunfels"]
[Date "2022.06.17"]
[Round "3.27"]
[White "Albayrak, Nese Pinar"]
[Black "Peglau, Mirjam"]
[Result "0-1"]
[ECO "B12"]
[WhiteElo "1683"]
[BlackElo "1834"]
[Annotator "NA RC"]
[PlyCount "58"]
[EventDate "2022.06.15"]
[EventType "swiss"]
[EventCountry "GER"]
[SourceTitle "playchess.com"]
[Source "ChessBase"]
[SourceQuality "1"]
[TimeControl "40/5400+30:1800+30"]

1. e4 {[%emt 0:00:02]} c6 {[%emt 0:00:06]} 2. d4 {[%emt 0:00:04]} d5 {[%emt 0:00:01]} 3. e5 {[%emt 0:00:06]} Bf5 {[%emt 0:00:07]} 4. h4 {[%emt 0:00:06]} h5 {[%emt 0:00:37]} 5. Bd3 {[%emt 0:00:09]} Bxd3 {[%emt 0:00:07]} 6. Qxd3 {[%emt 0:00:06]} e6 {[%emt 0:00:12]} 7. Nf3 {[%emt 0:09:33]} Nd7 {[%emt 0:01:04]} 8. Be3 {[%emt 0:17:24]} Ne7 {[%emt 0:02:11]} 9. Nbd2 {[%emt 0:02:55]} Nf5 {[%emt 0:01:16]} 10. O-O-O {[%emt 0:08:30]} Qb6 {[%emt 0:01:44]} 11. Ng5 {[%emt 0:05:53]} c5 {[%emt 0:03:05]} 12. dxc5 {[%emt 0:05:11]} Nxc5 {[%emt 0:01:34]} 13. Bxc5 {[%emt 0:02:38]} Bxc5 {[%emt 0:00:15]} 14. Nc4 {[%emt 0:13:07]} Qc7 {[%emt 0:09:40]} 15. Ne3 {[%emt 0:05:58]} Bxe3+ {[%emt 0:02:39]} 16. fxe3 {[%emt 0:00:42]} O-O-O {[%emt 0:00:48]} 17. Rh3 {[%emt 0:05:03]} Rhf8 {[%emt 0:05:47]} 18. Qe2 {[%emt 0:03:36]} Qxe5 {[%emt 0:06:02]} 19. Qxh5 {[%emt 0:05:45]} Nxe3 {[%emt 0:03:54]} 20. Re1 {[%emt 0:01:12]} d4 {[%emt 0:00:35]} 21. Qe2 {[%emt 0:02:51]} Qd5 {[%emt 0:04:47]} 22. Kb1 {[%emt 0:08:07]} Nxg2 {[%emt 0:07:18]} 23. Rf1 {[%emt 0:00:26]} Ne3 {[%emt 0:01:50]} 24. Rxf7 {[%emt 0:00:45]} Rxf7 {[%emt 0:00:34]} 25. Nxf7 {[%emt 0:00:03]} Rf8 {[%emt 0:00:47]} 26. Rf3 {[%emt 0:00:29]} Rxf7 {[%emt 0:00:37]} 27. Rxf7 {[%emt 0:02:26]} Qh1+ {[%emt 0:00:09]} 28. Rf1 {[%emt 0:00:07]} Qxf1+ {[%emt 0:00:01]} 29. Qxf1 {[%emt 0:00:09]} Nxf1 {[%emt 0:00:07]} 0-1